[Event "EYTCC Open U18 2022"]
[Site "Thessaloniki"]
[Date "2022.07.13"]
[Round "2.23"]
[White "Czopor, Maciej"]
[Black "Marn, Jan"]
[Result "*"]
[ECO "B90"]
[WhiteElo "2415"]
[BlackElo "2282"]
[Annotator "ChessBase"]
[PlyCount "25"]
[EventDate "2022.07.12"]
[EventType "team-tourn"]
[EventCountry "GRE"]
[SourceTitle "playchess.com"]
[Source "ChessBase"]
[SourceQuality "1"]
[WhiteTeam "Poland"]
[BlackTeam "Slovenia"]
[WhiteTeamCountry "POL"]
[BlackTeamCountry "SLO"]
[TimeControl "40/5400+30:1800+30"]

1. e4 {[%emt 0:00:01]} c5 {[%emt 0:00:13]} 2. Nf3 {[%emt 0:00:04]} d6 {[%emt 0:00:07]} 3. d4 {[%emt 0:00:02]} cxd4 {[%emt 0:00:06]} 4. Nxd4 {[%emt 0:00:03]} Nf6 {[%emt 0:00:07]} 5. Nc3 {[%emt 0:00:02]} a6 {[%emt 0:00:07]} 6. h3 {[%emt 0:00:02]} e5 {[%emt 0:00:07]} 7. Nde2 {[%emt 0:00:03]} h5 {[%emt 0:00:17]} 8. g3 {[%emt 0:00:05]} Be6 {[%emt 0:00:07]} 9. Bg2 {[%emt 0:00:15]} b5 {[%emt 0:00:16]} 10. a3 {[%emt 0:17:44]} Be7 {[%emt 0:02:21]} 11. O-O {[%emt 0:04:11]} Nbd7 {[%emt 0:05:56]} 12. Be3 {[%emt 0:02:38]} Nb6 {[%emt 0:08:03]} 13. b3 *

[Event "EYTCC Open U18 2022"]
[Site "Thessaloniki"]
[Date "2022.07.13"]
[Round "2.23"]
[White "Hulka, Valentyn"]
[Black "Koelle, Tobias"]
[Result "1/2-1/2"]
[ECO "B90"]
[WhiteElo "2123"]
[BlackElo "2436"]
[Annotator "ChessBase"]
[PlyCount "120"]
[EventDate "2022.07.12"]
[EventType "team-tourn"]
[EventCountry "GRE"]
[SourceTitle "playchess.com"]
[Source "ChessBase"]
[SourceQuality "1"]
[WhiteTeam "Ukraine"]
[BlackTeam "Germany"]
[WhiteTeamCountry "UKR"]
[BlackTeamCountry "GER"]
[TimeControl "40/5400+30:1800+30"]

1. e4 {[%emt 0:00:01]} c5 {[%emt 0:00:13]} 2. Nf3 {[%emt 0:00:04]} d6 {[%emt 0:00:07]} 3. d4 {[%emt 0:00:02]} cxd4 {[%emt 0:00:06]} 4. Nxd4 {[%emt 0:00:03]} Nf6 {[%emt 0:00:07]} 5. Nc3 {[%emt 0:00:02]} a6 {[%emt 0:00:07]} 6. h3 {[%emt 0:00:02]} e5 {[%emt 0:00:07]} 7. Nde2 {[%emt 0:00:03]} h5 {[%emt 0:00:17]} 8. g3 {[%emt 0:00:05]} Be6 {[%emt 0:00:07]} 9. Bg2 {[%emt 0:00:15]} b5 {[%emt 0:00:16]} 10. a3 {[%emt 0:17:44]} Be7 {[%emt 0:02:21]} 11. O-O {[%emt 0:04:11]} Nbd7 {[%emt 0:05:56]} 12. Be3 {[%emt 0:02:38]} Nb6 {[%emt 0:08:03]} 13. b3 {[%emt 0:04:02]} O-O {[%emt 0:01:13]} 14. Qd2 {[%emt 0:05:54]} Qc7 {[%emt 0:01:26]} 15. a4 {[%emt 0:16:52]} b4 {[%emt 0:02:36]} 16. a5 {[%emt 0:03:25]} Nc4 {[%emt 0:03:48]} 17. bxc4 {[%emt 0:00:01]} bxc3 {[%emt 0:00:08]} 18. Nxc3 {[%emt 0:00:06]} Bxc4 {[%emt 0:05:26]} 19. Rfd1 {[%emt 0:00:28]} Be6 {[%emt 0:22:20]} 20. Na4 {[%emt 0:02:00]} Rab8 {[%emt 0:08:03]} 21. Nb6 {[%emt 0:00:52]} Rfd8 {[%emt 0:13:39]} 22. Qd3 {[%emt 0:06:24]} Bc8 {[%emt 0:06:26]} 23. Ra3 {[%emt 0:06:38]} Qb7 {[%emt 0:04:17]} 24. Rb3 {[%emt 0:01:35]} Qc6 {[%emt 0:05:08]} 25. Rdb1 {[%emt 0:08:51]} Qe8 {[%emt 0:03:12]} 26. Nxc8 {[%emt 0:03:54]} Rbxc8 {[%emt 0:00:33]} 27. Qxa6 {[%emt 0:00:12]} Nd7 {[%emt 0:02:51]} 28. Qe2 {[%emt 0:04:13]} Nc5 {[%emt 0:00:33]} 29. Bxc5 {[%emt 0:06:31]} Rxc5 {[%emt 0:00:50]} 30. Rb5 {[%emt 0:00:40]} Qc6 {[%emt 0:01:48]} 31. Rxc5 {[%emt 0:00:16]} Qxc5 {[%emt 0:00:01]} 32. Qxh5 {[%emt 0:01:41]} Qxa5 {[%emt 0:00:17]} 33. Rb7 {[%emt 0:00:25]} g6 {[%emt 0:02:27]} 34. Qf3 {[%emt 0:00:12]} Kf8 {[%emt 0:00:18]} 35. Bf1 {[%emt 0:00:19]} d5 {[%emt 0:00:26]} 36. Rb5 {[%emt 0:03:41]} Qd2 {[%emt 0:01:02]} 37. exd5 {[%emt 0:01:09]} Qxc2 {[%emt 0:00:05]} 38. Bd3 {[%emt 0:00:27]} Qc1+ {[%emt 0:00:09]} 39. Kg2 {[%emt 0:00:08]} Qg5 {[%emt 0:01:13]} 40. Rb6 {[%emt 0:00:00]} Rd6 {[%emt 0:00:00]} 41. Rxd6 {[%emt 0:04:13]} Bxd6 {[%emt 0:00:27]} 42. h4 {[%emt 0:00:06]} Qh5 {[%emt 0:04:43]} 43. Qxh5 {[%emt 0:10:24]} gxh5 {[%emt 0:00:01]} 44. Be2 {[%emt 0:00:07]} Kg7 {[%emt 0:02:32]} 45. Bxh5 {[%emt 0:00:08]} e4 {[%emt 0:01:24]} 46. Kf1 {[%emt 0:02:54]} f5 {[%emt 0:04:27]} 47. Ke2 {[%emt 0:00:20]} Kf6 {[%emt 0:02:05]} 48. Be8 {[%emt 0:00:30]} Ke5 {[%emt 0:02:30]} 49. Bf7 {[%emt 0:00:14]} Bf8 {[%emt 0:01:38]} 50. Be6 {[%emt 0:03:20]} Bc5 {[%emt 0:02:12]} 51. f4+ {[%emt 0:01:20]} exf3+ {[%emt 0:00:20]} 52. Kxf3 {[%emt 0:00:02]} Kf6 {[%emt 0:01:08]} 53. h5 {[%emt 0:01:44]} Bf8 {[%emt 0:01:58]} 54. Bd7 {[%emt 0:00:38]} Ke5 {[%emt 0:01:10]} 55. Bc6 {[%emt 0:00:46]} Bh6 {[%emt 0:00:42]} 56. Bb7 {[%emt 0:00:13]} Bc1 {[%emt 0:00:29]} 57. Bc8 {[%emt 0:00:14]} Kxd5 {[%emt 0:00:29]} 58. Bxf5 {[%emt 0:00:02]} Ke5 {[%emt 0:00:07]} 59. Bc2 {[%emt 0:00:17]} Kf6 {[%emt 0:00:11]} 60. g4 {[%emt 0:00:11]} Ke5 1/2-1/2

[Event "EYTCC Open U18 2022"]
[Site "Thessaloniki"]
[Date "2022.07.13"]
[Round "2.24"]
[White "Nareks, Matic"]
[Black "Klimkowski, Jan"]
[Result "*"]
[ECO "B40"]
[WhiteElo "2221"]
[BlackElo "2398"]
[Annotator "ChessBase"]
[PlyCount "20"]
[EventDate "2022.07.12"]
[EventType "team-tourn"]
[EventCountry "GRE"]
[SourceTitle "playchess.com"]
[Source "ChessBase"]
[SourceQuality "1"]
[WhiteTeam "Slovenia"]
[BlackTeam "Poland"]
[WhiteTeamCountry "SLO"]
[BlackTeamCountry "POL"]
[TimeControl "40/5400+30:1800+30"]

1. e4 {[%emt 0:00:20]} c5 {[%emt 0:00:20]} 2. Nf3 {[%emt 0:00:05]} e6 {[%emt 0:00:39]} 3. g3 {[%emt 0:00:04]} Nc6 {[%emt 0:00:35]} 4. Bg2 {[%emt 0:00:03]} Qc7 {[%emt 0:03:31]} 5. O-O {[%emt 0:00:08]} Nf6 {[%emt 0:01:30]} 6. Re1 {[%emt 0:01:20]} Be7 {[%emt 0:03:16]} 7. c3 {[%emt 0:13:30]} O-O {[%emt 0:07:36]} 8. d4 {[%emt 0:01:15]} cxd4 {[%emt 0:04:16]} 9. cxd4 {[%emt 0:00:05]} d5 {[%emt 0:01:27]} 10. e5 {[%emt 0:00:06]} Ne4 {[%emt 0:02:00]} *

[Event "EYTCC Open U18 2022"]
[Site "Thessaloniki"]
[Date "2022.07.13"]
[Round "2.24"]
[White "Podolskyi, Mykhailo"]
[Black "Krastev, Alexander"]
[Result "1-0"]
[ECO "B40"]
[WhiteElo "2025"]
[BlackElo "2435"]
[Annotator "ChessBase"]
[PlyCount "83"]
[EventDate "2022.07.12"]
[EventType "team-tourn"]
[EventCountry "GRE"]
[SourceTitle "playchess.com"]
[Source "ChessBase"]
[SourceQuality "1"]
[WhiteTeam "Ukraine"]
[BlackTeam "Germany"]
[WhiteTeamCountry "UKR"]
[BlackTeamCountry "GER"]
[TimeControl "40/5400+30:1800+30"]

1. e4 {[%emt 0:00:20]} c5 {[%emt 0:00:20]} 2. Nf3 {[%emt 0:00:05]} e6 {[%emt 0:00:39]} 3. g3 {[%emt 0:00:04]} Nc6 {[%emt 0:00:35]} 4. Bg2 {[%emt 0:00:03]} Qc7 {[%emt 0:03:31]} 5. O-O {[%emt 0:00:08]} Nf6 {[%emt 0:01:30]} 6. Re1 {[%emt 0:01:20]} Be7 {[%emt 0:03:16]} 7. c3 {[%emt 0:13:30]} O-O {[%emt 0:07:36]} 8. d4 {[%emt 0:01:15]} cxd4 {[%emt 0:04:16]} 9. cxd4 {[%emt 0:00:05]} d5 {[%emt 0:01:27]} 10. e5 {[%emt 0:08:00]} Ne4 {[%emt 0:03:37]} 11. Nbd2 {[%emt 0:00:05]} Nxd2 {[%emt 0:05:31]} 12. Bxd2 {[%emt 0:01:08]} Qb6 {[%emt 0:04:43]} 13. Bc3 {[%emt 0:04:13]} Bd7 {[%emt 0:05:56]} 14. h4 {[%emt 0:07:20]} Rac8 {[%emt 0:12:31]} 15. Qd3 {[%emt 0:01:24]} Na5 {[%emt 0:04:24]} 16. Ng5 {[%emt 0:01:08]} g6 {[%emt 0:01:49]} 17. Nf3 Nc4 18. Rab1 {[%emt 0:06:28]} Qa6 {[%emt 0:10:22]} 19. Nh2 {[%emt 0:08:41]} Na3 {[%emt 0:18:13]} 20. Qxa6 {[%emt 0:25:17]} bxa6 {[%emt 0:00:03]} 21. bxa3 {[%emt 0:00:04]} Rxc3 {[%emt 0:00:09]} 22. Rb7 {[%emt 0:00:04]} Rd8 {[%emt 0:00:10]} 23. Rxa7 h5 24. Rb1 {[%emt 0:09:05]} Bxa3 {[%emt 0:05:49]} 25. Rbb7 {[%emt 0:00:18]} Be8 {[%emt 0:00:05]} 26. Nf3 {[%emt 0:00:14]} Bc1 {[%emt 0:05:11]} 27. Rxa6 {[%emt 0:10:35]} Rdc8 28. Rab6 {[%emt 0:00:02]} Ra3 {[%emt 0:01:19]} 29. Rb8 {[%emt 0:00:19]} Ra8 {[%emt 0:00:41]} 30. Rxc8 {[%emt 0:01:06]} Rxc8 {[%emt 0:00:54]} 31. Bf1 {[%emt 0:01:19]} Kg7 32. Bb5 {[%emt 0:00:01]} Bxb5 {[%emt 0:01:07]} 33. Rxb5 Ra8 34. Rb1 {[%emt 0:01:51]} Bh6 {[%emt 0:01:06]} 35. Rb2 {[%emt 0:00:55]} Ra3 {[%emt 0:00:29]} 36. Ne1 {[%emt 0:00:03]} Bc1 {[%emt 0:00:15]} 37. Rc2 {[%emt 0:00:42]} Bh6 38. Kf1 {[%emt 0:00:02]} Ra4 {[%emt 0:00:51]} 39. Nf3 {[%emt 0:00:00]} Ra3 {[%emt 0:00:30]} 40. Ke2 {[%emt 0:00:00]} Kg8 41. Nd2 {[%emt 0:18:17]} Kh8 {[%emt 0:09:35]} 42. Nb1 {[%emt 0:00:04]} 1-0

[Event "EYTCC Open U18 2022"]
[Site "Thessaloniki"]
[Date "2022.07.13"]
[Round "2.25"]
[White "Seemann, Jakub"]
[Black "Lavrencic, Matic"]
[Result "*"]
[ECO "C84"]
[WhiteElo "2382"]
[BlackElo "2151"]
[Annotator "ChessBase"]
[PlyCount "36"]
[EventDate "2022.07.12"]
[EventType "team-tourn"]
[EventCountry "GRE"]
[SourceTitle "playchess.com"]
[Source "ChessBase"]
[SourceQuality "1"]
[WhiteTeam "Poland"]
[BlackTeam "Slovenia"]
[WhiteTeamCountry "POL"]
[BlackTeamCountry "SLO"]
[TimeControl "40/5400+30:1800+30"]

1. e4 {[%emt 0:00:06]} e5 {[%emt 0:00:06]} 2. Nf3 {[%emt 0:00:06]} Nc6 {[%emt 0:00:05]} 3. Bb5 {[%emt 0:00:06]} a6 {[%emt 0:00:06]} 4. Ba4 {[%emt 0:00:05]} Nf6 {[%emt 0:00:35]} 5. O-O {[%emt 0:00:15]} Be7 {[%emt 0:00:24]} 6. Re1 {[%emt 0:00:50]} b5 {[%emt 0:00:08]} 7. Bb3 {[%emt 0:00:05]} d6 {[%emt 0:00:12]} 8. c3 {[%emt 0:00:12]} O-O {[%emt 0:00:08]} 9. h3 {[%emt 0:00:11]} Nb8 {[%emt 0:02:06]} 10. d4 {[%emt 0:00:21]} Nbd7 {[%emt 0:00:04]} 11. Nbd2 {[%emt 0:00:23]} Bb7 {[%emt 0:00:09]} 12. Bc2 {[%emt 0:00:21]} c5 {[%emt 0:00:34]} 13. Nf1 {[%emt 0:01:05]} Re8 {[%emt 0:01:24]} 14. Ng3 {[%emt 0:00:27]} Bf8 {[%emt 0:00:46]} 15. d5 {[%emt 0:02:35]} g6 {[%emt 0:05:13]} 16. Bg5 {[%emt 0:00:43]} h6 {[%emt 0:07:11]} 17. Be3 {[%emt 0:10:55]} c4 {[%emt 0:02:00]} 18. Nh2 Bg7 *

[Event "EYTCC Open U18 2022"]
[Site "Thessaloniki"]
[Date "2022.07.13"]
[Round "2.25"]
[White "Atis, Hasan"]
[Black "Veljanoski, Andrej"]
[Result "0-1"]
[ECO "C95"]
[WhiteElo "1956"]
[BlackElo "2162"]
[Annotator "ChessBase"]
[PlyCount "114"]
[EventDate "2022.07.12"]
[EventType "team-tourn"]
[EventCountry "GRE"]
[SourceTitle "playchess.com"]
[Source "ChessBase"]
[SourceQuality "1"]
[WhiteTeam "Turkey"]
[BlackTeam "Macedonia"]
[WhiteTeamCountry "TUR"]
[BlackTeamCountry "MKD"]
[TimeControl "40/5400+30:1800+30"]

1. e4 {[%emt 0:00:06]} e5 {[%emt 0:00:06]} 2. Nf3 {[%emt 0:00:06]} Nc6 {[%emt 0:00:05]} 3. Bb5 {[%emt 0:00:06]} a6 {[%emt 0:00:06]} 4. Ba4 {[%emt 0:00:05]} Nf6 {[%emt 0:00:35]} 5. O-O {[%emt 0:00:15]} Be7 {[%emt 0:00:24]} 6. Re1 {[%emt 0:00:50]} b5 {[%emt 0:00:08]} 7. Bb3 {[%emt 0:00:05]} d6 {[%emt 0:00:12]} 8. c3 {[%emt 0:00:12]} O-O {[%emt 0:00:08]} 9. h3 {[%emt 0:00:11]} Nb8 {[%emt 0:02:06]} 10. d4 {[%emt 0:00:21]} Nbd7 {[%emt 0:00:04]} 11. Nbd2 {[%emt 0:00:23]} Bb7 {[%emt 0:00:09]} 12. Bc2 {[%emt 0:00:21]} c5 {[%emt 0:00:34]} 13. Nf1 {[%emt 0:01:05]} Re8 {[%emt 0:01:24]} 14. Ng3 {[%emt 0:00:27]} Bf8 {[%emt 0:00:46]} 15. d5 {[%emt 0:02:35]} g6 {[%emt 0:05:13]} 16. Bg5 {[%emt 0:00:43]} h6 {[%emt 0:07:11]} 17. Be3 {[%emt 0:10:55]} c4 {[%emt 0:02:00]} 18. Nh2 {[%emt 0:15:00]} Bg7 19. Ng4 Kh7 {[%emt 0:05:11]} 20. Nxf6+ {[%emt 0:04:21]} Bxf6 {[%emt 0:01:38]} 21. Qg4 {[%emt 0:05:42]} Bg7 {[%emt 0:09:46]} 22. h4 {[%emt 0:14:01]} h5 {[%emt 0:02:19]} 23. Nxh5 {[%emt 0:05:40]} gxh5 {[%emt 0:02:48]} 24. Qxh5+ {[%emt 0:00:02]} Kg8 {[%emt 0:00:11]} 25. Bg5 {[%emt 0:00:05]} f6 {[%emt 0:01:04]} 26. Bh6 {[%emt 0:01:28]} Bxh6 {[%emt 0:00:43]} 27. Qxh6 {[%emt 0:00:39]} Qe7 {[%emt 0:00:07]} 28. Re3 {[%emt 0:16:48]} Qh7 {[%emt 0:00:24]} 29. Rg3+ {[%emt 0:00:01]} Kh8 {[%emt 0:00:08]} 30. Qe3 {[%emt 0:00:06]} Rg8 {[%emt 0:01:16]} 31. a4 {[%emt 0:00:26]} Nc5 {[%emt 0:01:54]} 32. Rf3 {[%emt 0:19:18]} Kg7 {[%emt 0:04:43]} 33. Rg3+ {[%emt 0:03:06]} Kf7 {[%emt 0:00:29]} 34. Rxg8 {[%emt 0:01:00]} Qxg8 {[%emt 0:05:56]} 35. axb5 {[%emt 0:00:44]} axb5 {[%emt 0:00:06]} 36. Rxa8 {[%emt 0:00:02]} Qxa8 {[%emt 0:00:50]} 37. Qh6 {[%emt 0:01:01]} Qg8 {[%emt 0:00:12]} 38. Qh5+ {[%emt 0:00:37]} Ke7 {[%emt 0:00:29]} 39. Qh6 {[%emt 0:00:31]} Bc8 {[%emt 0:00:29]} 40. Kf1 {[%emt 0:00:00]} Nd7 {[%emt 0:00:00]} 41. Bd1 {[%emt 0:03:38]} Nf8 {[%emt 0:09:27]} 42. Qe3 {[%emt 0:02:57]} f5 {[%emt 0:04:14]} 43. Qf3 {[%emt 0:15:01]} fxe4 {[%emt 0:02:33]} 44. Qxe4 {[%emt 0:00:20]} Qh7 {[%emt 0:00:15]} 45. Bc2 {[%emt 0:04:30]} Qxe4 {[%emt 0:00:43]} 46. Bxe4 {[%emt 0:00:03]} Kf6 {[%emt 0:00:17]} 47. f3 {[%emt 0:01:36]} Ng6 {[%emt 0:01:05]} 48. Bxg6 {[%emt 0:01:49]} Kxg6 {[%emt 0:00:04]} 49. g3 {[%emt 0:00:02]} Bb7 {[%emt 0:00:29]} 50. g4 {[%emt 0:00:58]} Bxd5 {[%emt 0:00:45]} 51. Ke2 {[%emt 0:00:01]} Be6 {[%emt 0:00:39]} 52. Ke3 {[%emt 0:00:06]} d5 {[%emt 0:00:31]} 53. Ke2 {[%emt 0:03:53]} d4 {[%emt 0:00:36]} 54. cxd4 {[%emt 0:01:39]} exd4 {[%emt 0:00:11]} 55. Kd2 {[%emt 0:00:12]} b4 {[%emt 0:00:12]} 56. Kc2 {[%emt 0:01:00]} Bd5 {[%emt 0:00:15]} 57. f4 {[%emt 0:00:08]} Bf3 {[%emt 0:00:16]} 0-1

[Event "EYTCC Open U18 2022"]
[Site "Thessaloniki"]
[Date "2022.07.13"]
[Round "2.26"]
[White "Koellner, Ruben Gideon"]
[Black "Prokofiev, Valentyn"]
[Result "*"]
[ECO "C02"]
[WhiteElo "2422"]
[BlackElo "2286"]
[Annotator "ChessBase"]
[PlyCount "21"]
[EventDate "2022.07.12"]
[EventType "team-tourn"]
[EventCountry "GRE"]
[SourceTitle "playchess.com"]
[Source "ChessBase"]
[SourceQuality "1"]
[WhiteTeam "Germany"]
[BlackTeam "Ukraine"]
[WhiteTeamCountry "GER"]
[BlackTeamCountry "UKR"]
[TimeControl "40/5400+30:1800+30"]

1. e4 {[%emt 0:00:07]} e6 {[%emt 0:00:07]} 2. d4 {[%emt 0:00:12]} d5 {[%emt 0:00:04]} 3. e5 {[%emt 0:00:10]} c5 {[%emt 0:00:05]} 4. c3 {[%emt 0:00:04]} Ne7 {[%emt 0:00:25]} 5. Nf3 {[%emt 0:01:01]} Nec6 {[%emt 0:00:06]} 6. Bd3 {[%emt 0:05:28]} b6 {[%emt 0:00:16]} 7. Na3 {[%emt 0:03:50]} Ba6 {[%emt 0:03:26]} 8. Bxa6 {[%emt 0:01:39]} Nxa6 {[%emt 0:00:04]} 9. Qa4 {[%emt 0:00:36]} Nab8 {[%emt 0:02:15]} 10. O-O {[%emt 0:05:49]} Qc8 {[%emt 0:07:16]} 11. Nb5 {[%emt 0:07:51]} *

[Event "EYTCC Open U18 2022"]
[Site "Thessaloniki"]
[Date "2022.07.13"]
[Round "2.26"]
[White "Jordanov, Mihail"]
[Black "Aydogdu, Selcan Ayberk"]
[Result "1-0"]
[ECO "C02"]
[WhiteElo "2158"]
[BlackElo "1902"]
[Annotator "ChessBase"]
[PlyCount "105"]
[EventDate "2022.07.12"]
[EventType "team-tourn"]
[EventCountry "GRE"]
[SourceTitle "playchess.com"]
[Source "ChessBase"]
[SourceQuality "1"]
[WhiteTeam "Macedonia"]
[BlackTeam "Turkey"]
[WhiteTeamCountry "MKD"]
[BlackTeamCountry "TUR"]
[TimeControl "40/5400+30:1800+30"]

1. e4 {[%emt 0:00:07]} e6 {[%emt 0:00:07]} 2. d4 {[%emt 0:00:12]} d5 {[%emt 0:00:04]} 3. e5 {[%emt 0:00:10]} c5 {[%emt 0:00:05]} 4. c3 {[%emt 0:00:04]} Ne7 {[%emt 0:00:25]} 5. Nf3 {[%emt 0:01:01]} Nec6 {[%emt 0:00:06]} 6. Bd3 {[%emt 0:05:28]} b6 {[%emt 0:00:16]} 7. Na3 {[%emt 0:03:50]} Ba6 {[%emt 0:03:26]} 8. Bxa6 {[%emt 0:01:39]} Nxa6 {[%emt 0:00:04]} 9. Qa4 {[%emt 0:00:36]} Nab8 {[%emt 0:02:15]} 10. O-O {[%emt 0:05:49]} Qc8 {[%emt 0:07:16]} 11. Nb5 {[%emt 0:07:51]} Nd7 {[%emt 0:11:21]} 12. Bf4 {[%emt 0:17:31]} a6 {[%emt 0:03:22]} 13. Nd6+ {[%emt 0:00:51]} Bxd6 {[%emt 0:00:12]} 14. exd6 {[%emt 0:00:04]} O-O {[%emt 0:01:29]} 15. Rfe1 {[%emt 0:00:43]} Re8 {[%emt 0:05:27]} 16. c4 {[%emt 0:10:13]} Nxd4 {[%emt 0:15:11]} 17. Nxd4 {[%emt 0:06:48]} cxd4 {[%emt 0:00:16]} 18. cxd5 {[%emt 0:01:36]} e5 {[%emt 0:02:47]} 19. Rac1 {[%emt 0:11:04]} Nc5 {[%emt 0:14:17]} 20. Rxc5 {[%emt 0:02:26]} Qxc5 {[%emt 0:00:11]} 21. d7 {[%emt 0:00:25]} Re7 {[%emt 0:01:08]} 22. Bg5 {[%emt 0:05:46]} b5 {[%emt 0:07:34]} 23. Bxe7 {[%emt 0:02:20]} Qxe7 {[%emt 0:00:04]} 24. Qxd4 {[%emt 0:00:25]} Qxd7 {[%emt 0:01:33]} 25. Qxe5 {[%emt 0:01:23]} Rd8 {[%emt 0:01:56]} 26. h3 {[%emt 0:05:39]} h6 {[%emt 0:00:52]} 27. Rd1 {[%emt 0:03:48]} a5 {[%emt 0:04:09]} 28. d6 {[%emt 0:01:05]} Kh7 {[%emt 0:03:23]} 29. Rd5 {[%emt 0:01:52]} a4 {[%emt 0:00:45]} 30. Qe4+ {[%emt 0:01:16]} g6 {[%emt 0:02:06]} 31. Qb4 {[%emt 0:01:17]} Qc6 {[%emt 0:02:08]} 32. Qd2 {[%emt 0:01:13]} Rd7 {[%emt 0:01:33]} 33. a3 {[%emt 0:00:33]} Qc4 {[%emt 0:01:21]} 34. Rd4 {[%emt 0:00:29]} Qc5 {[%emt 0:00:54]} 35. g3 {[%emt 0:00:47]} Qe5 {[%emt 0:01:07]} 36. Rd5 {[%emt 0:01:06]} Qf6 {[%emt 0:00:38]} 37. Kg2 {[%emt 0:00:20]} Qe6 {[%emt 0:00:21]} 38. Qd4 {[%emt 0:00:47]} Kg8 {[%emt 0:01:46]} 39. Qd3 {[%emt 0:00:33]} Kh7 {[%emt 0:00:41]} 40. Qxb5 {[%emt 0:00:00]} Rxd6 {[%emt 0:00:00]} 41. Rxd6 {[%emt 0:01:37]} Qxd6 {[%emt 0:02:57]} 42. Qxa4 {[%emt 0:00:08]} Qd5+ {[%emt 0:00:35]} 43. Kg1 {[%emt 0:01:19]} Kg8 {[%emt 0:01:29]} 44. Qc2 {[%emt 0:02:52]} h5 {[%emt 0:00:32]} 45. h4 {[%emt 0:01:33]} g5 {[%emt 0:00:47]} 46. hxg5 {[%emt 0:03:32]} Qxg5 {[%emt 0:00:12]} 47. Qc8+ {[%emt 0:01:08]} Kg7 {[%emt 0:00:58]} 48. Qc3+ {[%emt 0:01:02]} Kg8 {[%emt 0:00:19]} 49. Qe3 {[%emt 0:01:08]} Qb5 {[%emt 0:00:57]} 50. b4 {[%emt 0:00:33]} Qc4 {[%emt 0:01:09]} 51. Qg5+ {[%emt 0:00:24]} Kh7 {[%emt 0:00:17]} 52. Qxh5+ {[%emt 0:00:05]} Kg7 {[%emt 0:00:11]} 53. Qg5+ {[%emt 0:00:04]} 1-0